[Event "Pobeskydi 2026"]
[Site "Frydek-Mistek, Czech Republic"]
[Date "2026.04.05"]
[Round "8.10"]
[White "Lee, Yuk Hei"]
[Black "Dobsa, Emma"]
[Result "0-1"]
[TimeControl "90 min+30s/move"]
[WhiteTitle "-"]
[BlackTitle "-"]
[WhiteFideId "343411061"]
[BlackFideId "23709391"]
[WhiteElo "1960"]
[BlackElo "1921"]

1. d4 {[%clk 01:30:58]} {[%emt 02:25:18]} d5 {[%clk 01:30:58]} 2. c4 {[%clk
01:31:21]} {[%emt 00:00:10]} c6 {[%clk 01:31:17]} 3. Nf3 {[%clk 01:31:45]}
{[%emt 00:00:17]} Nf6 {[%clk 01:31:42]} 4. Nc3 {[%clk 01:32:12]} {[%emt
00:00:08]} dxc4 {[%clk 01:32:06]} 5. a4 {[%clk 01:32:35]} {[%emt 00:00:12]} Bf5
{[%clk 01:32:06]} 6. Ne5 {[%clk 01:33:01]} {[%emt 00:00:35]} Nbd7 {[%clk
01:32:25]} 7. Nxc4 {[%clk 01:33:21]} {[%emt 00:00:20]} Qc7 {[%clk 01:32:51]} 8.
f3 {[%clk 01:33:05]} {[%emt 00:00:50]} e5 {[%clk 01:30:45]} 9. e4 {[%clk
01:28:52]} {[%emt 00:07:19]} exd4 {[%clk 01:24:11]} 10. Ne2 {[%clk 01:23:09]}
{[%emt 00:13:17]} d3 {[%clk 01:11:53]} 11. Qxd3 {[%clk 01:22:42]} {[%emt
00:13:45]} Nc5 {[%clk 01:11:44]} 12. Qc2 {[%clk 01:21:07]} {[%emt 00:02:44]}
O-O-O {[%clk 01:09:55]} 13. Bf4 {[%clk 01:10:52]} {[%emt 00:13:05]} Qe7 {[%clk
00:53:14]} 14. Rd1 {[%clk 00:37:30]} {[%emt 00:51:03]} Nfxe4 {[%clk 00:38:18]}
15. fxe4 {[%clk 00:34:25]} {[%emt 00:19:00]} Bxe4 {[%clk 00:37:14]} 16. Nd6+
{[%clk 00:31:18]} {[%emt 00:05:11]} Qxd6 {[%clk 00:34:42]} 17. Rxd6 {[%clk
00:29:57]} {[%emt 00:04:54]} Bxc2 {[%clk 00:33:51]} 18. Rxd8+ {[%clk 00:30:00]}
{[%emt 00:01:47]} Kxd8 {[%clk 00:34:20]} 19. a5 {[%clk 00:30:16]} {[%emt
00:00:15]} Ne4 {[%clk 00:32:37]} 20. Nd4 {[%clk 00:29:44]} {[%emt 00:03:15]}
Bb4+ {[%clk 00:32:12]} 21. Ke2 {[%clk 00:30:03]} {[%emt 00:01:06]} Bd1+ {[%clk
00:30:26]} 22. Kxd1 {[%clk 00:25:50]} {[%emt 00:06:59]} Nf2+ {[%clk 00:30:55]}
23. Ke2 {[%clk 00:26:12]} {[%emt 00:00:09]} Nxh1 {[%clk 00:31:17]} 24. g3
{[%clk 00:26:20]} {[%emt 00:00:30]} Re8+ {[%clk 00:30:34]} {[%emt 00:01:13]} 25.
Be3 {[%clk 00:25:34]} {[%emt 00:01:16]} Bxa5 {[%clk 00:28:26]} {[%emt
00:02:38]} 26. Bg2 {[%clk 00:25:55]} {[%emt 00:00:09]} Nxg3+ {[%clk 00:28:29]}
{[%emt 00:00:27]} 27. hxg3 {[%clk 00:26:19]} {[%emt 00:00:07]} Bc7 {[%clk
00:28:45]} {[%emt 00:00:13]} 28. g4 {[%clk 00:25:47]} {[%emt 00:01:01]} Bf4
{[%clk 00:24:48]} {[%emt 00:04:28]} 29. Nc2 {[%clk 00:25:05]} {[%emt 00:01:13]}
Re5 {[%clk 00:23:36]} {[%emt 00:01:42]} 30. Kd3 {[%clk 00:25:11]} {[%emt
00:00:24]} Bxe3 {[%clk 00:23:41]} {[%emt 00:00:25]} 31. Nxe3 {[%clk 00:25:35]}
{[%emt 00:00:05]} h5 {[%clk 00:23:29]} {[%emt 00:00:42]} 32. Bf3 {[%clk
00:25:50]} {[%emt 00:00:15]} hxg4 {[%clk 00:23:08]} {[%emt 00:00:51]} 33. Nxg4
{[%clk 00:26:09]} {[%emt 00:00:11]} Rb5 {[%clk 00:23:27]} {[%emt 00:00:10]} 34.
Kc3 {[%clk 00:26:35]} {[%emt 00:00:05]} f5 {[%clk 00:22:58]} {[%emt 00:00:59]}
35. Ne3 {[%clk 00:26:57]} {[%emt 00:00:08]} g5 {[%clk 00:22:12]} {[%emt
00:01:17]} 36. Be2 {[%clk 00:27:09]} {[%emt 00:00:18]} Re5 {[%clk 00:22:25]}
{[%emt 00:00:16]} 37. Kd4 {[%clk 00:26:58]} {[%emt 00:00:42]} Re7 {[%clk
00:22:08]} {[%emt 00:00:46]} 38. Kd3 {[%clk 00:25:44]} {[%emt 00:01:45]} Rf7
{[%clk 00:20:38]} {[%emt 00:02:00]} 39. Nc4 {[%clk 00:24:16]} {[%emt 00:01:57]}
Ke7 {[%clk 00:18:58]} {[%emt 00:02:10]} 40. Kd4 {[%clk 00:24:14]} {[%emt
00:00:32]} Kf6 {[%clk 00:18:27]} {[%emt 00:01:01]} 41. Ke3 {[%clk 00:22:51]}
{[%emt 00:01:53]} Re7+ {[%clk 00:18:33]} {[%emt 00:00:24]} 42. Kf2 {[%clk
00:22:49]} {[%emt 00:00:32]} g4 {[%clk 00:18:53]} {[%emt 00:00:10]} 43. Bd1
{[%clk 00:22:46]} {[%emt 00:00:34]} Kg5 {[%clk 00:18:54]} {[%emt 00:00:29]} 44.
Ne3 {[%clk 00:23:00]} {[%emt 00:00:16]} Rd7 {[%clk 00:18:09]} {[%emt 00:01:15]}
45. Be2 {[%clk 00:22:25]} {[%emt 00:01:04]} Rd2 {[%clk 00:18:23]} {[%emt
00:00:15]} 46. Nc4 {[%clk 00:21:24]} {[%emt 00:01:32]} Rc2 {[%clk 00:17:56]}
{[%emt 00:00:57]} 47. b4 {[%clk 00:21:40]} {[%emt 00:00:15]} f4 {[%clk
00:17:55]} {[%emt 00:00:30]} 48. Kf1 {[%clk 00:20:45]} {[%emt 00:01:26]} f3
{[%clk 00:18:06]} {[%emt 00:00:18]} 49. Bd3 {[%clk 00:21:10]} {[%emt 00:00:05]}
Rc1+ {[%clk 00:18:28]} {[%emt 00:00:08]} 50. Kf2 {[%clk 00:21:33]} {[%emt
00:00:07]} Kf4 {[%clk 00:18:51]} {[%emt 00:00:07]} 0-1

[Event "Pobeskydi 2026"]
[Site "Frydek-Mistek, Czech Republic"]
[Date "2026.04.05"]
[Round "8.11"]
[White "Bartova, Hana"]
[Black "Durana, Jonas"]
[Result "1-0"]
[TimeControl "90 min+30s/move"]
[WhiteTitle "-"]
[BlackTitle "-"]
[WhiteFideId "23732695"]
[BlackFideId "73619663"]
[WhiteElo "1823"]
[BlackElo "2183"]

1. e4 {[%clk 01:30:57]} {[%emt 00:00:01]} c5 {[%clk 01:30:55]} {[%emt
00:00:05]} 2. Nf3 {[%clk 01:31:23]} {[%emt 00:00:04]} d6 {[%clk 01:31:20]}
{[%emt 00:00:07]} 3. c3 {[%clk 01:31:49]} {[%emt 00:00:03]} Nf6 {[%clk
01:31:28]} {[%emt 00:00:21]} 4. Bd3 {[%clk 01:32:12]} {[%emt 00:00:07]} Nc6
{[%clk 01:31:43]} {[%emt 00:00:16]} 5. Bc2 {[%clk 01:32:37]} {[%emt 00:00:05]}
g6 {[%clk 01:31:01]} {[%emt 00:01:12]} 6. d3 {[%clk 01:32:14]} {[%emt
00:00:53]} Bg7 {[%clk 01:31:23]} {[%emt 00:00:08]} 7. Nbd2 {[%clk 01:31:51]}
{[%emt 00:00:53]} O-O {[%clk 01:31:41]} {[%emt 00:00:12]} 8. O-O {[%clk
01:31:44]} {[%emt 00:00:37]} a6 {[%clk 01:31:12]} {[%emt 00:00:59]} 9. a4
{[%clk 01:26:08]} {[%emt 00:06:06]} Bd7 {[%clk 01:28:51]} {[%emt 00:02:51]} 10.
Re1 {[%clk 01:22:12]} {[%emt 00:04:26]} Qc7 {[%clk 01:29:05]} {[%emt 00:00:16]}
11. Nf1 {[%clk 01:21:43]} {[%emt 00:00:58]} b5 {[%clk 01:19:10]} {[%emt
00:10:26]} 12. Ne3 {[%clk 01:07:08]} {[%emt 00:15:05]} e6 {[%clk 01:15:49]}
{[%emt 00:03:50]} 13. d4 {[%clk 00:54:56]} {[%emt 00:12:43]} cxd4 {[%clk
01:13:17]} {[%emt 00:03:02]} 14. Nxd4 {[%clk 00:55:19]} {[%emt 00:00:07]} Nxd4
{[%clk 01:09:01]} {[%emt 00:04:47]} 15. cxd4 {[%clk 00:55:05]} {[%emt
00:00:44]} Bc6 {[%clk 01:00:08]} {[%emt 00:09:22]} 16. d5 {[%clk 00:47:19]}
{[%emt 00:08:17]} exd5 {[%clk 01:00:10]} {[%emt 00:00:27]} 17. exd5 {[%clk
00:46:40]} {[%emt 00:01:09]} Bb7 {[%clk 00:53:00]} {[%emt 00:07:39]} 18. Qd3
{[%clk 00:37:31]} {[%emt 00:09:39]} Nxd5 {[%clk 00:45:53]} {[%emt 00:07:37]} 19.
Nxd5 {[%clk 00:36:03]} {[%emt 00:01:58]} Bxd5 {[%clk 00:45:30]} {[%emt
00:00:53]} 20. Qxd5 {[%clk 00:36:22]} {[%emt 00:00:12]} Qxc2 {[%clk 00:45:53]}
{[%emt 00:00:06]} 21. axb5 {[%clk 00:36:29]} {[%emt 00:00:24]} Rae8 {[%clk
00:45:23]} {[%emt 00:01:00]} 22. Be3 {[%clk 00:32:42]} {[%emt 00:04:16]} axb5
{[%clk 00:45:36]} {[%emt 00:00:18]} 23. Qxd6 {[%clk 00:29:43]} {[%emt
00:03:29]} Bxb2 {[%clk 00:35:20]} {[%emt 00:10:45]} 24. Rab1 {[%clk 00:26:59]}
{[%emt 00:03:14]} Rb8 {[%clk 00:19:38]} {[%emt 00:16:12]} 25. Rf1 {[%clk
00:23:24]} {[%emt 00:04:05]} b4 {[%clk 00:14:46]} {[%emt 00:05:22]} 26. Rxb2
{[%clk 00:23:01]} {[%emt 00:00:54]} Qxb2 {[%clk 00:13:12]} {[%emt 00:02:04]} 27.
Bd4 {[%clk 00:23:26]} {[%emt 00:00:05]} Rbd8 {[%clk 00:13:39]} {[%emt
00:00:03]} 28. Qxd8 {[%clk 00:23:44]} {[%emt 00:00:12]} 1-0

[Event "Pobeskydi 2026"]
[Site "Frydek-Mistek, Czech Republic"]
[Date "2026.04.06"]
[Round "9.1"]
[White "Lichorad, Mateusz"]
[Black "Gnojek, Petr"]
[Result "*"]
[TimeControl "90 min+30s/move"]
[WhiteTitle "-"]
[BlackTitle "-"]
[WhiteFideId "21817693"]
[BlackFideId "371807"]
[WhiteElo "2039"]
[BlackElo "2401"]

1. e4 {[%clk 01:25:09]} {[%emt 00:05:51]} c5 {[%clk 01:30:05]} {[%emt
00:00:56]} 2. Nf3 {[%clk 01:25:35]} {[%emt 00:00:04]} d6 {[%clk 01:30:28]}
{[%emt 00:00:07]} 3. d4 {[%clk 01:25:59]} {[%emt 00:00:06]} cxd4 {[%clk
01:30:48]} {[%emt 00:00:10]} 4. Nxd4 {[%clk 01:26:25]} {[%emt 00:00:04]} Nf6
{[%clk 01:31:10]} {[%emt 00:00:07]} 5. Nc3 {[%clk 01:26:48]} {[%emt 00:00:07]}
e6 {[%clk 01:31:29]} {[%emt 00:00:12]} 6. g4 {[%clk 01:26:57]} {[%emt
00:00:20]} h6 {[%clk 01:31:49]} {[%emt 00:00:10]} 7. Rg1 {[%clk 01:27:05]}
{[%emt 00:00:22]} Nc6 {[%clk 01:32:07]} {[%emt 00:00:13]} 8. Be3 {[%clk
01:27:30]} {[%emt 00:00:05]} Be7 {[%clk 01:31:50]} {[%emt 00:00:47]} 9. Qe2
{[%clk 01:27:35]} {[%emt 00:00:25]} Nxd4 {[%clk 01:30:47]} {[%emt 00:01:33]} 10.
Bxd4 {[%clk 01:28:01]} {[%emt 00:00:04]} e5 {[%clk 01:31:07]} {[%emt 00:00:10]}
11. Be3 {[%clk 01:28:29]} {[%emt 00:00:02]} Be6 {[%clk 01:31:22]} {[%emt
00:00:14]} 12. O-O-O {[%clk 01:28:45]} {[%emt 00:00:15]} Qa5 {[%clk 01:31:17]}
{[%emt 00:00:35]} 13. Qb5+ {[%clk 01:29:07]} {[%emt 00:00:08]} Qxb5 {[%clk
01:31:37]} {[%emt 00:00:10]} 14. Bxb5+ {[%clk 01:29:28]} {[%emt 00:00:09]} Kf8
{[%clk 01:30:22]} {[%emt 00:01:44]} 15. f3 {[%clk 01:27:19]} {[%emt 00:02:39]}
g6 {[%clk 01:26:23]} {[%emt 00:04:30]} 16. Ba4 {[%clk 01:19:15]} {[%emt
00:08:34]} a6 {[%clk 01:20:07]} {[%emt 00:06:45]} 17. Kb1 {[%clk 01:16:09]}
{[%emt 00:03:37]} Kg7 {[%clk 01:19:38]} {[%emt 00:00:58]} 18. Bb3 {[%clk
01:12:16]} {[%emt 00:04:24]} Rac8 {[%clk 01:16:15]} {[%emt 00:03:53]} 19. h3
{[%clk 01:06:59]} {[%emt 00:05:47]} Rc6 {[%clk 01:12:03]} {[%emt 00:04:42]} 20.
f4 {[%clk 00:59:21]} {[%emt 00:08:08]} Rhc8 {[%clk 00:51:04]} {[%emt 00:21:29]}
21. Nd5 {[%clk 00:58:22]} {[%emt 00:01:28]} Bd8 {[%clk 00:51:24]} {[%emt
00:00:10]} 22. Nb4 {[%clk 00:46:38]} {[%emt 00:12:15]} R6c7 {[%clk 00:51:20]}
{[%emt 00:00:34]} 23. fxe5 {[%clk 00:46:51]} {[%emt 00:00:17]} dxe5 {[%clk
00:51:43]} {[%emt 00:00:07]} 24. Nd5 {[%clk 00:45:35]} {[%emt 00:01:46]} Rc6
{[%clk 00:47:21]} {[%emt 00:04:52]} 25. Nb4 {[%clk 00:45:51]} {[%emt 00:00:14]}
R6c7 {[%clk 00:45:28]} {[%emt 00:02:23]} 26. Nd5 {[%clk 00:46:07]} {[%emt
00:00:14]} Bxd5 {[%clk 00:45:05]} {[%emt 00:00:53]} 27. exd5 {[%clk 00:46:28]}
{[%emt 00:00:09]} b5 {[%clk 00:45:31]} {[%emt 00:00:05]} 28. Rge1 {[%clk
00:35:05]} {[%emt 00:11:52]} Rd7 {[%clk 00:44:26]} {[%emt 00:01:34]} 29. Bf2
{[%clk 00:34:14]} {[%emt 00:01:20]} Bc7 {[%clk 00:44:32]} {[%emt 00:00:26]} 30.
Bg3 {[%clk 00:32:15]} {[%emt 00:02:29]} e4 {[%clk 00:43:57]} {[%emt 00:01:04]}
31. Bf2 {[%clk 00:32:25]} {[%emt 00:00:20]} Be5 {[%clk 00:43:51]} {[%emt
00:00:37]} 32. c3 {[%clk 00:31:53]} {[%emt 00:01:03]} a5 {[%clk 00:38:31]}
{[%emt 00:05:50]} 33. a4 {[%clk 00:26:34]} {[%emt 00:05:48]} bxa4 {[%clk
00:38:34]} {[%emt 00:00:27]} 34. Bxa4 {[%clk 00:27:03]} Rxd5 {[%clk 00:38:57]}
{[%emt 00:00:07]} 35. Rxd5 {[%clk 00:26:48]} {[%emt 00:00:46]} Nxd5 {[%clk
00:39:22]} {[%emt 00:00:05]} 36. Bb3 {[%clk 00:24:14]} {[%emt 00:03:05]} Nf6
{[%clk 00:23:17]} {[%emt 00:16:34]} 37. Bc2 {[%clk 00:18:42]} {[%emt 00:06:02]}
Re8 {[%clk 00:23:40]} {[%emt 00:00:06]} 38. Bxe4 {[%clk 00:13:21]} {[%emt
00:05:52]} Bxc3 {[%clk 00:24:04]} {[%emt 00:00:06]} 39. bxc3 {[%clk 00:13:47]}
{[%emt 00:00:05]} Rxe4 {[%clk 00:21:04]} {[%emt 00:03:29]} 40. Rd1 {[%clk
00:11:51]} {[%emt 00:02:25]} g5 {[%clk 00:19:18]} {[%emt 00:02:16]} 41. Rd6
{[%clk 00:09:47]} {[%emt 00:02:34]} Re6 {[%clk 00:19:33]} {[%emt 00:00:15]} 42.
Rd8 {[%clk 00:10:02]} {[%emt 00:00:16]} Kg6 {[%clk 00:16:05]} {[%emt 00:03:58]}
43. Bd4 {[%clk 00:08:30]} {[%emt 00:02:01]} h5 {[%clk 00:16:26]} {[%emt
00:00:10]} 44. gxh5+ {[%clk 00:08:50]} {[%emt 00:00:10]} Nxh5 {[%clk 00:16:23]}
{[%emt 00:00:33]} 45. Rg8+ {[%clk 00:07:07]} {[%emt 00:02:12]} Kf5 {[%clk
00:16:14]} {[%emt 00:00:40]} 46. Rf8 {[%clk 00:07:31]} {[%emt 00:00:06]} f6
{[%clk 00:16:27]} {[%emt 00:00:17]} 47. Rh8 {[%clk 00:07:03]} {[%emt 00:00:57]}
Nf4 {[%clk 00:16:49]} {[%emt 00:00:09]} 48. h4 {[%clk 00:07:32]} {[%emt
00:00:01]} Ng6 {[%clk 00:16:39]} {[%emt 00:00:39]} *

[Event "Pobeskydi 2026"]
[Site "Frydek-Mistek, Czech Republic"]
[Date "2026.04.06"]
[Round "9.2"]
[White "Walek, Petr"]
[Black "Karas, Marek"]
[Result "1/2-1/2"]
[TimeControl "90 min+30s/move"]
[WhiteTitle "-"]
[BlackTitle "-"]
[WhiteFideId "339393"]
[BlackFideId "14928558"]
[WhiteElo "2304"]
[BlackElo "2232"]

1. e4 {[%clk 01:30:58]} {[%emt 00:00:01]} e5 {[%clk 01:29:35]} {[%emt
00:01:26]} 2. Nf3 {[%clk 01:29:15]} {[%emt 00:02:13]} Nf6 {[%clk 01:30:02]}
{[%emt 00:00:02]} 3. Nxe5 {[%clk 01:27:07]} {[%emt 00:02:39]} d6 {[%clk
01:30:30]} {[%emt 00:00:01]} 4. Nf3 {[%clk 01:27:25]} {[%emt 00:00:12]} Nxe4
{[%clk 01:30:54]} {[%emt 00:00:06]} 5. Bd3 {[%clk 01:26:22]} {[%emt 00:01:33]}
Nf6 {[%clk 01:31:20]} {[%emt 00:00:04]} 6. c3 {[%clk 01:26:37]} {[%emt
00:00:15]} d5 {[%clk 01:31:02]} {[%emt 00:00:48]} 7. O-O {[%clk 01:24:10]}
{[%emt 00:02:57]} Be7 {[%clk 01:31:12]} {[%emt 00:00:20]} 8. h3 {[%clk
01:24:00]} {[%emt 00:00:40]} c5 {[%clk 01:30:54]} {[%emt 00:00:48]} 9. Bc2
{[%clk 01:19:58]} {[%emt 00:04:33]} d4 {[%clk 01:30:56]} {[%emt 00:00:27]} 10.
cxd4 {[%clk 01:16:27]} {[%emt 00:04:01]} cxd4 {[%clk 01:31:00]} {[%emt
00:00:26]} 11. Ba4+ {[%clk 01:16:45]} {[%emt 00:00:12]} Nc6 {[%clk 01:31:22]}
{[%emt 00:00:07]} 12. Ne5 {[%clk 01:12:56]} {[%emt 00:04:19]} Bd7 {[%clk
01:18:43]} {[%emt 00:13:09]} 13. Bxc6 {[%clk 01:08:25]} {[%emt 00:05:02]} Bxc6
{[%clk 01:16:26]} {[%emt 00:02:46]} 14. Nxc6 {[%clk 01:06:02]} {[%emt
00:02:54]} bxc6 {[%clk 01:16:53]} {[%emt 00:00:02]} 15. d3 {[%clk 01:06:01]}
{[%emt 00:00:31]} O-O {[%clk 01:16:55]} {[%emt 00:00:28]} 16. Bg5 {[%clk
01:01:13]} {[%emt 00:05:18]} Nd5 {[%clk 01:12:54]} {[%emt 00:04:30]} 17. Bxe7
{[%clk 01:01:05]} {[%emt 00:00:39]} Qxe7 {[%clk 01:13:21]} {[%emt 00:00:02]} 18.
Nd2 {[%clk 00:59:47]} {[%emt 00:01:49]} Rfe8 {[%clk 01:07:30]} {[%emt
00:06:21]} 19. Nf3 {[%clk 00:44:02]} {[%emt 00:16:15]} 1/2-1/2

[Event "Pobeskydi 2026"]
[Site "Frydek-Mistek, Czech Republic"]
[Date "2026.04.06"]
[Round "9.3"]
[White "Buchtova, Viktorie"]
[Black "Haasova, Timea"]
[Result "1-0"]
[TimeControl "90 min+30s/move"]
[WhiteTitle "-"]
[BlackTitle "-"]
[WhiteFideId "23714786"]
[BlackFideId "14960109"]
[WhiteElo "2055"]
[BlackElo "2012"]

1. e4 {[%clk 01:30:58]} {[%emt 00:00:02]} c5 {[%clk 01:30:54]} {[%emt
00:00:07]} 2. Nf3 {[%clk 01:31:24]} {[%emt 00:00:03]} e6 {[%clk 01:31:17]}
{[%emt 00:00:07]} 3. d4 {[%clk 01:31:47]} {[%emt 00:00:08]} cxd4 {[%clk
01:31:41]} {[%emt 00:00:06]} 4. Nxd4 {[%clk 01:32:13]} {[%emt 00:00:04]} Nf6
{[%clk 01:32:01]} {[%emt 00:00:10]} 5. Nc3 {[%clk 01:32:39]} {[%emt 00:00:04]}
Nc6 {[%clk 01:32:22]} {[%emt 00:00:09]} 6. a3 {[%clk 01:32:56]} {[%emt
00:00:14]} a6 {[%clk 01:17:45]} {[%emt 00:15:06]} 7. Be2 {[%clk 01:33:01]}
{[%emt 00:00:24]} Qc7 {[%clk 01:17:19]} {[%emt 00:00:56]} 8. Be3 {[%clk
01:27:29]} {[%emt 00:06:03]} Be7 {[%clk 01:14:13]} {[%emt 00:03:35]} 9. O-O
{[%clk 01:27:17]} {[%emt 00:00:43]} O-O {[%clk 01:13:37]} {[%emt 00:01:06]} 10.
f4 {[%clk 01:23:55]} {[%emt 00:03:51]} d6 {[%clk 01:06:36]} {[%emt 00:07:31]}
11. Qe1 {[%clk 01:17:03]} {[%emt 00:07:22]} e5 {[%clk 00:47:49]} {[%emt
00:19:17]} 12. Nb3 {[%clk 01:03:07]} {[%emt 00:14:27]} exf4 {[%clk 00:37:06]}
{[%emt 00:11:13]} 13. Rxf4 {[%clk 00:53:02]} {[%emt 00:10:35]} Ne5 {[%clk
00:32:22]} {[%emt 00:05:14]} 14. Qg3 {[%clk 00:43:11]} {[%emt 00:10:21]} Ng6
{[%clk 00:25:40]} {[%emt 00:07:11]} 15. Rff1 {[%clk 00:39:41]} {[%emt
00:04:01]} Be6 {[%clk 00:21:47]} {[%emt 00:04:23]} 16. Rad1 {[%clk 00:36:34]}
{[%emt 00:03:36]} Rac8 {[%clk 00:20:57]} {[%emt 00:01:20]} 17. Nd4 {[%clk
00:32:16]} {[%emt 00:04:48]} b5 {[%clk 00:16:35]} {[%emt 00:04:52]} 18. h4
{[%clk 00:23:50]} {[%emt 00:08:56]} d5 {[%clk 00:09:34]} {[%emt 00:07:32]} 19.
Qxc7 {[%clk 00:23:57]} {[%emt 00:00:22]} Rxc7 {[%clk 00:09:58]} {[%emt
00:00:06]} 20. Nxe6 {[%clk 00:23:13]} {[%emt 00:01:15]} fxe6 {[%clk 00:10:22]}
{[%emt 00:00:05]} 21. h5 {[%clk 00:23:19]} {[%emt 00:00:23]} Nh8 {[%clk
00:08:26]} {[%emt 00:02:27]} 22. exd5 {[%clk 00:21:04]} {[%emt 00:02:45]} Nxd5
{[%clk 00:06:57]} {[%emt 00:01:58]} 23. Nxd5 {[%clk 00:21:18]} {[%emt
00:00:17]} Rxf1+ {[%clk 00:06:05]} {[%emt 00:01:23]} 24. Rxf1 {[%clk 00:18:17]}
{[%emt 00:03:31]} exd5 {[%clk 00:06:27]} {[%emt 00:00:08]} 25. Bf3 {[%clk
00:18:08]} {[%emt 00:00:39]} Rd7 {[%clk 00:05:15]} {[%emt 00:01:42]} 26. Bg4
{[%clk 00:17:52]} {[%emt 00:00:45]} Rd6 {[%clk 00:05:11]} {[%emt 00:00:35]} 27.
Bc5 {[%clk 00:18:04]} {[%emt 00:00:18]} Rf6 {[%clk 00:04:52]} {[%emt 00:00:49]}
28. Bxe7 {[%clk 00:18:27]} {[%emt 00:00:07]} 1-0

[Event "Pobeskydi 2026"]
[Site "Frydek-Mistek, Czech Republic"]
[Date "2026.04.06"]
[Round "9.4"]
[White "Zeman, Daniel Nikolas"]
[Black "Trybus, Daniel"]
[Result "0-1"]
[TimeControl "90 min+30s/move"]
[WhiteTitle "-"]
[BlackTitle "-"]
[WhiteFideId "23717130"]
[BlackFideId "21816131"]
[WhiteElo "1957"]
[BlackElo "2055"]

1. d4 {[%clk 01:30:55]} {[%emt 00:00:04]} Nf6 {[%clk 01:27:32]} {[%emt
00:03:28]} 2. Nf3 {[%clk 01:31:10]} {[%emt 00:00:14]} g6 {[%clk 01:27:57]}
{[%emt 00:00:07]} 3. e3 {[%clk 01:30:32]} {[%emt 00:01:08]} Bg7 {[%clk
01:28:08]} {[%emt 00:00:18]} 4. Bd3 {[%clk 01:30:53]} {[%emt 00:00:09]} O-O
{[%clk 01:28:29]} {[%emt 00:00:09]} 5. b3 {[%clk 01:31:14]} {[%emt 00:00:09]}
d6 {[%clk 01:26:27]} {[%emt 00:02:32]} 6. Bb2 {[%clk 01:31:31]} {[%emt
00:00:13]} Nbd7 {[%clk 01:26:48]} {[%emt 00:00:08]} 7. Nbd2 {[%clk 01:29:33]}
{[%emt 00:02:29]} e5 {[%clk 01:26:18]} {[%emt 00:01:00]} 8. dxe5 {[%clk
01:28:45]} {[%emt 00:01:19]} Ng4 {[%clk 01:26:44]} {[%emt 00:00:03]} 9. O-O
{[%clk 01:25:03]} {[%emt 00:04:12]} Ndxe5 {[%clk 01:25:36]} {[%emt 00:01:39]}
10. Nxe5 {[%clk 01:22:05]} {[%emt 00:03:27]} Nxe5 {[%clk 01:25:35]} {[%emt
00:00:31]} 11. Be2 {[%clk 01:21:23]} {[%emt 00:01:13]} Nf3+ {[%clk 01:25:14]}
{[%emt 00:00:50]} 12. Nxf3 {[%clk 01:21:15]} {[%emt 00:00:39]} Bxb2 {[%clk
01:25:41]} {[%emt 00:00:02]} 13. Rb1 {[%clk 01:21:39]} {[%emt 00:00:06]} Bg7
{[%clk 01:26:06]} {[%emt 00:00:05]} 14. Nd4 {[%clk 01:21:28]} {[%emt 00:00:42]}
d5 {[%clk 01:25:38]} {[%emt 00:00:57]} 15. Bf3 {[%clk 01:18:48]} {[%emt
00:03:10]} c6 {[%clk 01:21:23]} {[%emt 00:04:45]} 16. Qd2 {[%clk 01:15:41]}
{[%emt 00:03:37]} g5 {[%clk 01:16:00]} {[%emt 00:05:53]} 17. Rfd1 {[%clk
01:10:32]} {[%emt 00:05:40]} Qf6 {[%clk 01:11:15]} {[%emt 00:05:14]} 18. b4
{[%clk 01:07:13]} {[%emt 00:03:49]} g4 {[%clk 01:05:32]} {[%emt 00:06:13]} 19.
Be2 {[%clk 01:07:29]} {[%emt 00:00:14]} Rd8 {[%clk 01:05:49]} {[%emt 00:00:13]}
20. g3 {[%clk 01:00:59]} {[%emt 00:07:00]} a5 {[%clk 01:02:38]} {[%emt
00:03:41]} 21. bxa5 {[%clk 00:51:44]} {[%emt 00:09:46]} h5 {[%clk 00:58:28]}
{[%emt 00:04:39]} 22. Rb6 {[%clk 00:49:03]} {[%emt 00:03:12]} Qe7 {[%clk
00:47:59]} {[%emt 00:10:56]} 23. Bd3 {[%clk 00:28:59]} {[%emt 00:20:36]} Qc5
{[%clk 00:42:04]} {[%emt 00:06:25]} 24. Nb3 {[%clk 00:28:36]} {[%emt 00:00:54]}
Qe7 {[%clk 00:30:33]} {[%emt 00:12:00]} 25. a6 {[%clk 00:25:05]} {[%emt
00:04:02]} Ra7 {[%clk 00:18:01]} {[%emt 00:13:02]} 26. Qa5 {[%clk 00:23:33]}
{[%emt 00:02:01]} Be5 {[%clk 00:15:40]} {[%emt 00:02:51]} 27. Rb4 {[%clk
00:15:26]} {[%emt 00:08:38]} b5 {[%clk 00:15:12]} {[%emt 00:00:58]} 28. Nd4
{[%clk 00:12:02]} {[%emt 00:03:53]} Rxa6 {[%clk 00:13:36]} {[%emt 00:02:07]} 29.
Nxc6 {[%clk 00:09:54]} {[%emt 00:02:38]} Rxc6 {[%clk 00:13:47]} {[%emt
00:00:18]} 30. Qxb5 {[%clk 00:09:25]} {[%emt 00:00:59]} Rc5 {[%clk 00:12:37]}
{[%emt 00:01:40]} 31. Qa4 {[%clk 00:09:26]} {[%emt 00:00:29]} Be6 {[%clk
00:10:55]} {[%emt 00:02:12]} 32. Rdb1 {[%clk 00:09:21]} {[%emt 00:00:35]} Qc7
{[%clk 00:11:04]} {[%emt 00:00:21]} 33. Rb7 {[%clk 00:07:46]} {[%emt 00:02:05]}
Qa5 {[%clk 00:10:43]} {[%emt 00:00:52]} 34. Qb4 {[%clk 00:07:16]} {[%emt
00:01:00]} Ra8 {[%clk 00:10:27]} {[%emt 00:00:46]} 35. Qxa5 {[%clk 00:05:55]}
{[%emt 00:01:51]} Rcxa5 {[%clk 00:10:46]} {[%emt 00:00:10]} 36. e4 {[%clk
00:05:55]} {[%emt 00:00:30]} Rxa2 {[%clk 00:10:16]} {[%emt 00:01:01]} 37. h3
{[%clk 00:04:53]} {[%emt 00:01:32]} gxh3 {[%clk 00:09:41]} {[%emt 00:01:05]} 38.
Kh2 {[%clk 00:05:02]} {[%emt 00:00:20]} dxe4 {[%clk 00:09:33]} {[%emt
00:00:38]} 39. Bxe4 {[%clk 00:05:23]} {[%emt 00:00:09]} R8a4 {[%clk 00:09:20]}
{[%emt 00:00:42]} 40. Bd3 {[%clk 00:05:00]} {[%emt 00:00:53]} h4 {[%clk
00:09:11]} {[%emt 00:00:38]} 41. R1b5 {[%clk 00:04:36]} {[%emt 00:00:56]} hxg3+
{[%clk 00:09:06]} {[%emt 00:00:35]} 42. fxg3 {[%clk 00:05:04]} {[%emt
00:00:02]} Bd6 {[%clk 00:08:43]} {[%emt 00:00:51]} 43. Rg5+ {[%clk 00:04:59]}
{[%emt 00:00:36]} Kf8 {[%clk 00:09:04]} {[%emt 00:00:07]} 44. Rb6 {[%clk
00:03:58]} {[%emt 00:01:33]} Rd4 {[%clk 00:09:28]} {[%emt 00:00:06]} 45. Bf5
{[%clk 00:02:20]} {[%emt 00:02:09]} Ra5 {[%clk 00:08:58]} {[%emt 00:00:59]} 0-1